Workbook

Sheet Наклонные вертикальные жалюзи
A1: Расчет наклонных вертикальных жалюзи, v2.00
A2: Ввод начальных параметров | G2: Расчет нижней ширины | J2: Для этого расчета должны быть заданы высоты (слева)
A3: h1 высота большая, м | B3: 1.32 | G3: Длина карниза d2, м | I3: 2.268
A4: h2 высота меньшая,м | B4: 0.1 | G4: Ширина нижняя d1, м | I4: =SQRT(I3^2-(B3-B4)^2) -> 1.911916316
A5: d1 ширина нижняя, м | B5: 2.06
A6: d2, длина карниза, м | B6: =ROUND(SQRT(((B3-B4)*(B3-B4)+B5*B5)),3) -> 2.394 | D6: Количество ламелей, шт | E6: =CEILING(12.5*B6,1) -> 30
A7: b крепеж жесткий, м | B7: 0.04
A8: c, крепеж подвижный, м | B8: 0.015
A9: угол β, рад, наклон карниза | B9: =ATAN((B3-B4)/B5) -> 0.534688904 | H9: d2
A10: угол β, град, наклон карниза | B10: =DEGREES(B9) -> 30.63541755 | D10: Проверка угла β | E10: =IF(B10<=55,"Нормально","Недопустимо") -> Нормально
A11: угол α, град (зависит от β) | B11: =90-B10 -> 59.36458245
A12: угол α, рад | B12: =RADIANS(B11) -> 1.036107423
A13: a, высота, м (зависит от α) | B13: =B7*SIN(B12) -> 0.03441708789
A14: № ламели | B14: Длина ламели, м | C14: Тип ткани | D14: Данные для станка VB-3 | O14: Смещение по карнизу
A15: 1 | B15: =B3-O15*SIN(B9)-B13-B8 -> 1.250199977 | C15: 1 | D15: Количество ламелей | E15: =E6 -> 30 | O15: 0.04
A16: 2 | B16: =$B$3-O16*SIN($B$9)-$B$13-$B$8 -> 1.209434105 | C16: 1 | D16: Высота большая | E16: =B15-0.044 -> 1.206199977 | K16: h1 | O16: 0.12
A17: 3 | B17: =$B$3-O17*SIN($B$9)-$B$13-$B$8 -> 1.168668234 | C17: 1 | D17: Высота малая | E17: =VLOOKUP(E15,$A$15:$B$94,2,0)-0.044 -> 0.02398971499 | F17: h2 | O17: 0.2
A18: 4 | B18: 1.127902363 | C18: 1 | O18: 0.28
A19: 5 | B19: 1.087136492 | C19: 1 | O19: 0.36
A20: 6 | B20: 1.046370621 | C20: 1 | O20: 0.44
A21: 7 | B21: 1.00560475 | C21: 1 | O21: 0.52
A22: 8 | B22: 0.9648388789 | C22: 1 | O22: 0.6
A23: 9 | B23: 0.9240730079 | C23: 1 | K23: 1-я ламель | O23: 0.68
A24: 10 | B24: 0.8833071368 | C24: 1 | H24: d1 | O24: 0.76
A25: 11 | B25: 0.8425412657 | C25: 1 | O25: 0.84
A26: 12 | B26: 0.8017753946 | C26: 1 | G26: Мотор или механизм управления могут быть | O26: 0.92
A27: 13 | B27: 0.7610095235 | C27: 1 | G27: с любой стороны. | O27: 1
A28: 14 | B28: 0.7202436524 | C28: 1 | O28: 1.08
A29: 15 | B29: 0.6794777813 | C29: 1 | G29: Угол β: | H29: 55 гр. max | O29: 1.16
A30: 16 | B30: 0.6387119102 | C30: 1 | O30: 1.24
A31: 17 | B31: 0.5979460391 | C31: 1 | G31: Держатели ламелей всегда двусоставные | O31: 1.32
A32: 18 | B32: 0.5571801681 | C32: 1 | O32: 1.4
A33: 19 | B33: 0.516414297 | C33: 1 | G33: Рассчитанные высоты ламелей являются актуальными | O33: 1.48
A34: 20 | B34: 0.4756484259 | C34: 1 | G34: только для производства AMIGO GROUP | O34: 1.56
A35: 21 | B35: 0.4348825548 | C35: 1 | O35: 1.64
A36: 22 | B36: 0.3941166837 | C36: 1 | G36: Высота ламели реальная с держателем = Длина расч. - 2,5 см | O36: 1.72
A37: 23 | B37: 0.3533508126 | C37: 1 | G37: Высота ткани (как с обычным держателем) = Длина расч. - 4 см | O37: 1.8
A38: 24 | B38: 0.3125849415 | C38: 1 | O38: 1.88
A39: 25 | B39: 0.2718190704 | C39: 1 | O39: 1.96
A40: 26 | B40: 0.2310531993 | C40: 1 | O40: 2.04
A41: 27 | B41: 0.1902873283 | C41: 1 | O41: 2.12
A42: 28 | B42: 0.1495214572 | C42: 1 | O42: 2.2
A43: 29 | B43: 0.1087555861 | C43: 1 | O43: 2.28
A44: 30 | B44: 0.06798971499 | C44: 1 | O44: 2.36
A45: 31 | B45: 0.0272238439 | C45: 1 | O45: 2.44
A46: 32 | B46: -0.01354202719 | C46: 1 | O46: 2.52
A47: 33 | B47: -0.05430789828 | C47: 1 | O47: 2.6
A48: 34 | B48: -0.09507376937 | C48: 1 | O48: 2.68
A49: 35 | B49: -0.1358396405 | C49: 1 | O49: 2.76
A50: 36 | B50: -0.1766055115 | C50: 1 | O50: 2.84
A51: 37 | B51: -0.2173713826 | C51: 1 | O51: 2.92
A52: 38 | B52: -0.2581372537 | C52: 1 | O52: 3
A53: 39 | B53: -0.2989031248 | C53: 1 | O53: 3.08
A54: 40 | B54: -0.3396689959 | C54: 1 | O54: 3.16
A55: 41 | B55: -0.380434867 | C55: 1 | O55: 3.24
A56: 42 | B56: -0.4212007381 | C56: 1 | O56: 3.32
A57: 43 | B57: -0.4619666092 | C57: 1 | O57: 3.4
A58: 44 | B58: -0.5027324803 | C58: 1 | O58: 3.48
A59: 45 | B59: -0.5434983513 | C59: 1 | O59: 3.56
A60: 46 | B60: -0.5842642224 | C60: 1 | O60: 3.64
A61: 47 | B61: -0.6250300935 | C61: 1 | O61: 3.72
A62: 48 | B62: -0.6657959646 | C62: 1 | O62: 3.8
A63: 49 | B63: -0.7065618357 | C63: 1 | O63: 3.88
A64: 50 | B64: -0.7473277068 | C64: 1 | O64: 3.96
A65: 51 | B65: -0.7880935779 | C65: 1 | O65: 4.04
A66: 52 | B66: -0.828859449 | C66: 1 | O66: 4.12
A67: 53 | B67: -0.8696253201 | C67: 1 | O67: 4.2
A68: 54 | B68: -0.9103911911 | C68: 1 | O68: 4.28
A69: 55 | B69: -0.9511570622 | C69: 1 | O69: 4.36
A70: 56 | B70: -0.9919229333 | C70: 1 | O70: 4.44
A71: 57 | B71: -1.032688804 | C71: 1 | O71: 4.52
A72: 58 | B72: -1.073454675 | C72: 1 | O72: 4.6
A73: 59 | B73: -1.114220547 | C73: 1 | O73: 4.68
A74: 60 | B74: -1.154986418 | C74: 1 | O74: 4.76
A75: 61 | B75: -1.195752289 | C75: 1 | O75: 4.84
A76: 62 | B76: -1.23651816 | C76: 1 | O76: 4.92
A77: 63 | B77: -1.277284031 | C77: 1 | O77: 5
A78: 64 | B78: -1.318049902 | C78: 1 | O78: 5.08
A79: 65 | B79: -1.358815773 | C79: 1 | O79: 5.16
A80: 66 | B80: -1.399581644 | C80: 1 | O80: 5.24
A81: 67 | B81: =$B$3-O81*SIN($B$9)-$B$13-$B$8 -> -1.440347515 | C81: 1 | O81: 5.32
A82: 68 | B82: -1.481113386 | C82: 1 | O82: 5.4
A83: 69 | B83: -1.521879257 | C83: 1 | O83: 5.48
A84: 70 | B84: -1.562645129 | C84: 1 | O84: 5.56
A85: 71 | B85: -1.603411 | C85: 1 | O85: 5.64
A86: 72 | B86: -1.644176871 | C86: 1 | O86: 5.72
A87: 73 | B87: -1.684942742 | C87: 1 | O87: 5.8
A88: 74 | B88: -1.725708613 | C88: 1 | O88: 5.88
A89: 75 | B89: -1.766474484 | C89: 1 | O89: 5.96
A90: 76 | B90: -1.807240355 | C90: 1 | O90: 6.04
A91: 77 | B91: -1.848006226 | C91: 1 | O91: 6.12
A92: 78 | B92: -1.888772097 | C92: 1 | O92: 6.2
A93: 79 | B93: -1.929537968 | C93: 1 | O93: 6.28
A94: 80 | B94: -1.970303839 | C94: 1 | O94: 6.36

Sheet Сложные наклонные жалюзи №1
A1: Ввод начальных параметров | P1: Вспомогательные расчеты
A2: h1 высота большая, м | B2: 2.02 | P2: Длина без нижн. тр. | Q2: Смещение по карнизу | R2: Проекция смещения по карнизу
A3: h2 высота меньшая, м | B3: 0 | P3: =$B$9-Q3*SIN($B$13)-$B$17-$B$12 -> -1794.954559 | Q3: 0.04 | R3: =Q3*COS($B$13) -> 2.89696821e-05
A4: d1 ширина, м | B4: 1.3 | I4: d2 | M4: h11 | P4: -1794.874559 | Q4: 0.12 | R4: 8.690904631e-05
A5: d3, длина по низу, м | B5: 1797 | P5: -1794.794559 | Q5: 0.2 | R5: 0.0001448484105
A6: d2, длина карниза, м | B6: =SQRT(B4^2+B8^2) -> 1794.980001 | D6: Количество ламелей, шт | E6: =CEILING(12.5*B6,1) -> 22438 | P6: -1794.714559 | Q6: 0.28 | R6: 0.0002027877747
A7: h12, м | B7: =SQRT(B5^2-B4^2) -> 1796.99953 | P7: -1794.634559 | Q7: 0.36 | R7: 0.0002607271389
A8: h11, м | B8: =B2-B7-B3 -> -1794.97953 | P8: -1794.554559 | Q8: 0.44 | R8: 0.0003186665032
A9: h2+h11, м | B9: =B3+B8 -> -1794.97953 | J9: d1 | P9: -1794.474559 | Q9: 0.52 | R9: 0.0003766058674
A10: Угол g, рад | B10: =ASIN(B4/B5) -> 0.0007234279985 | P10: -1794.394559 | Q10: 0.6 | R10: 0.0004345452316
A11: b крепеж жесткий, м | B11: 0.04 | P11: -1794.314559 | Q11: 0.68 | R11: 0.0004924845958
A12: c, крепеж подвижный, м | B12: 0.015 | P12: -1794.234559 | Q12: 0.76 | R12: 0.00055042396
A13: угол β, рад, наклон карниза | B13: =ATAN((B9-B3)/B4) -> -1.570072085 | P13: -1794.154559 | Q13: 0.84 | R13: 0.0006083633242
A14: угол β, град, наклон карниза | B14: =DEGREES(B13) -> -89.95850398 | D14: Проверка угла β | E14: =IF(B14<=55,"Нормально","Недопустимо") -> Нормально | M14: h1 | P14: -1794.074559 | Q14: 0.92 | R14: 0.0006663026884
A15: угол α, град (зависит от β) | B15: =90-B14 -> 179.958504 | G15: h2 | P15: -1793.994559 | Q15: 1 | R15: 0.0007242420526
A16: угол α, рад | B16: =RADIANS(B15) -> 3.140868411 | P16: -1793.914559 | Q16: 1.08 | R16: 0.0007821814168
A17: a, высота, м (зависит от α) | B17: =B11*SIN(B16) -> 2.89696821e-05 | P17: -1793.834559 | Q17: 1.16 | R17: 0.000840120781
P18: -1793.754559 | Q18: 1.24 | R18: 0.0008980601453
A19: № ламели | B19: Длина ламели, м | P19: -1793.674559 | Q19: 1.32 | R19: 0.0009559995095
A20: 1 | B20: =P3+(($B$4-R3)/TAN($B$10)) -> 2.004926016 | P20: -1793.594559 | Q20: 1.4 | R20: 0.001013938874
A21: 2 | B21: 2.004835987 | P21: -1793.514559 | Q21: 1.48 | R21: 0.001071878238
A22: 3 | B22: 2.004745958 | P22: -1793.434559 | Q22: 1.56 | R22: 0.001129817602
A23: 4 | B23: 2.004655929 | P23: -1793.354559 | Q23: 1.64 | R23: 0.001187756966
A24: 5 | B24: 2.0045659 | M24: h12 | P24: -1793.274559 | Q24: 1.72 | R24: 0.001245696331
A25: 6 | B25: 2.004475872 | P25: -1793.194559 | Q25: 1.8 | R25: 0.001303635695
A26: 7 | B26: 2.004385843 | J26: d3 | P26: -1793.114559 | Q26: 1.88 | R26: 0.001361575059
A27: 8 | B27: 2.004295814 | L27: 1 ламель | P27: -1793.034559 | Q27: 1.96 | R27: 0.001419514423
A28: 9 | B28: 2.004205785 | G28: Мотор или механизм управления расположен | P28: -1792.954559 | Q28: 2.04 | R28: 0.001477453787
A29: 10 | B29: 2.004115756 | G29: всегда в нижней части карниза | P29: -1792.874559 | Q29: 2.12 | R29: 0.001535393152
A30: 11 | B30: 2.004025727 | P30: -1792.794559 | Q30: 2.2 | R30: 0.001593332516
A31: 12 | B31: 2.003935698 | G31: Угол β: | H31: 55 гр. max | P31: -1792.714559 | Q31: 2.28 | R31: 0.00165127188
A32: 13 | B32: 2.00384567 | P32: -1792.634559 | Q32: 2.36 | R32: 0.001709211244
A33: 14 | B33: 2.003755641 | G33: Держатели ламелей всегда двусоставные | P33: -1792.554559 | Q33: 2.44 | R33: 0.001767150608
A34: 15 | B34: 2.003665612 | P34: -1792.474559 | Q34: 2.52 | R34: 0.001825089973
A35: 16 | B35: 2.003575583 | G35: Рассчитанные высоты ламелей являются актуальными | P35: =$B$9-Q35*SIN($B$13)-$B$17-$B$12 -> -1792.394559 | Q35: 2.6 | R35: =Q35*COS($B$13) -> 0.001883029337
A36: 17 | B36: 2.003485554 | G36: только для производства AMIGO GROUP | P36: -1792.314559 | Q36: 2.68 | R36: 0.001940968701
A37: 18 | B37: 2.003395525 | G37: Высота ламели реальная с держателем = Длина расч. - 2,5 см | P37: -1792.234559 | Q37: 2.76 | R37: 0.001998908065
A38: 19 | B38: 2.003305496 | G38: Высота ткани (как с обычным держателем) = Длина расч. - 4 см | P38: -1792.154559 | Q38: 2.84 | R38: 0.002056847429
A39: 20 | B39: 2.003215468 | P39: -1792.07456 | Q39: 2.92 | R39: 0.002114786794
A40: 21 | B40: 2.003125439 | P40: -1791.99456 | Q40: 3 | R40: 0.002172726158
A41: 22 | B41: 2.00303541 | P41: -1791.91456 | Q41: 3.08 | R41: 0.002230665522
A42: 23 | B42: 2.002945381 | P42: -1791.83456 | Q42: 3.16 | R42: 0.002288604886
A43: 24 | B43: 2.002855352 | P43: -1791.75456 | Q43: 3.24 | R43: 0.00234654425
A44: 25 | B44: 2.002765323 | P44: -1791.67456 | Q44: 3.32 | R44: 0.002404483615
A45: 26 | B45: 2.002675294 | P45: -1791.59456 | Q45: 3.4 | R45: 0.002462422979
A46: 27 | B46: 2.002585266 | P46: -1791.51456 | Q46: 3.48 | R46: 0.002520362343
A47: 28 | B47: 2.002495237 | P47: -1791.43456 | Q47: 3.56 | R47: 0.002578301707
A48: 29 | B48: 2.002405208 | P48: -1791.35456 | Q48: 3.64 | R48: 0.002636241072
A49: 30 | B49: 2.002315179 | P49: -1791.27456 | Q49: 3.72 | R49: 0.002694180436
A50: 31 | B50: 2.00222515 | P50: -1791.19456 | Q50: 3.8 | R50: 0.0027521198
A51: 32 | B51: 2.002135121 | P51: -1791.11456 | Q51: 3.88 | R51: 0.002810059164
A52: 33 | B52: =P35+(($B$4-R35)/TAN($B$10)) -> 2.002045092 | P52: -1791.03456 | Q52: 3.96 | R52: 0.002867998528
A53: 34 | B53: 2.001955064 | P53: -1790.95456 | Q53: 4.04 | R53: 0.002925937893
A54: 35 | B54: 2.001865035 | P54: -1790.87456 | Q54: 4.12 | R54: 0.002983877257
A55: 36 | B55: 2.001775006 | P55: -1790.79456 | Q55: 4.2 | R55: 0.003041816621
A56: 37 | B56: 2.001684977 | P56: -1790.71456 | Q56: 4.28 | R56: 0.003099755985
A57: 38 | B57: 2.001594948 | P57: -1790.63456 | Q57: 4.36 | R57: 0.003157695349
A58: 39 | B58: 2.001504919 | P58: -1790.55456 | Q58: 4.44 | R58: 0.003215634714
A59: 40 | B59: 2.00141489 | P59: -1790.47456 | Q59: 4.52 | R59: 0.003273574078
A60: 41 | B60: 2.001324862 | P60: -1790.39456 | Q60: 4.6 | R60: 0.003331513442
A61: 42 | B61: 2.001234833 | P61: -1790.31456 | Q61: 4.68 | R61: 0.003389452806
A62: 43 | B62: 2.001144804 | P62: -1790.23456 | Q62: 4.76 | R62: 0.00344739217
A63: 44 | B63: 2.001054775 | P63: -1790.15456 | Q63: 4.84 | R63: 0.003505331535
A64: 45 | B64: 2.000964746 | P64: -1790.07456 | Q64: 4.92 | R64: 0.003563270899
A65: 46 | B65: 2.000874717 | P65: -1789.99456 | Q65: 5 | R65: 0.003621210263
A66: 47 | B66: 2.000784688 | P66: -1789.91456 | Q66: 5.08 | R66: 0.003679149627
A67: 48 | B67: 2.00069466 | P67: =$B$9-Q67*SIN($B$13)-$B$17-$B$12 -> -1789.83456 | Q67: 5.16 | R67: =Q67*COS($B$13) -> 0.003737088992
A68: 49 | B68: 2.000604631 | P68: -1789.75456 | Q68: 5.24 | R68: =Q68*COS($B$13) -> 0.003795028356
A69: 50 | B69: 2.000514602 | P69: -1789.67456 | Q69: 5.32 | R69: 0.00385296772
A70: 51 | B70: 2.000424573 | P70: -1789.59456 | Q70: 5.4 | R70: 0.003910907084
A71: 52 | B71: 2.000334544 | P71: -1789.51456 | Q71: 5.48 | R71: 0.003968846448
A72: 53 | B72: 2.000244515 | P72: -1789.43456 | Q72: 5.56 | R72: 0.004026785813
A73: 54 | B73: 2.000154486 | P73: -1789.35456 | Q73: 5.64 | R73: 0.004084725177
A74: 55 | B74: 2.000064458 | P74: -1789.27456 | Q74: 5.72 | R74: 0.004142664541
A75: 56 | B75: 1.999974429 | P75: -1789.19456 | Q75: 5.8 | R75: 0.004200603905
A76: 57 | B76: 1.9998844 | P76: -1789.11456 | Q76: 5.88 | R76: 0.004258543269
A77: 58 | B77: 1.999794371 | P77: -1789.03456 | Q77: 5.96 | R77: 0.004316482634
A78: 59 | B78: 1.999704342 | P78: -1788.95456 | Q78: 6.04 | R78: 0.004374421998
A79: 60 | B79: 1.999614313 | P79: -1788.87456 | Q79: 6.12 | R79: 0.004432361362
A80: 61 | B80: 1.999524284 | P80: -1788.79456 | Q80: 6.2 | R80: 0.004490300726
A81: 62 | B81: 1.999434256 | P81: -1788.71456 | Q81: 6.28 | R81: 0.00454824009
A82: 63 | B82: 1.999344227 | P82: -1788.63456 | Q82: 6.36 | R82: 0.004606179455
A83: 64 | B83: 1.999254198
A84: 65 | B84: =P67+(($B$4-R67)/TAN($B$10)) -> 1.999164169
A85: 66 | B85: 1.99907414
A86: 67 | B86: 1.998984111
A87: 68 | B87: 1.998894082
A88: 69 | B88: 1.998804054
A89: 70 | B89: 1.998714025
A90: 71 | B90: 1.998623996
A91: 72 | B91: 1.998533967
A92: 73 | B92: 1.998443938
A93: 74 | B93: 1.998353909
A94: 75 | B94: 1.99826388
A95: 76 | B95: 1.998173852
A96: 77 | B96: 1.998083823
A97: 78 | B97: 1.997993794
A98: 79 | B98: 1.997903765
A99: 80 | B99: 1.997813736

Sheet Сложные наклонные жалюзи №2
A1: Ввод начальных параметров | P1: Вспомогательные расчеты
A2: h1 высота с большей ст., м | B2: 2 | P2: Длина без нижн. тр. | Q2: Смещение по карнизу | R2: Проекция смещения по карнизу
A3: h2 высота с меньшей ст., м | B3: 2 | P3: =$B$2-Q3*SIN($B$12)-$B$16-$B$11 -> 1.940569872 | Q3: 0.04 | R3: =Q3*COS($B$12) -> 0.03972194638
A4: d1 ширина, м | B4: 1 | I4: d2 | M4: h11 | P4: 1.931153508 | Q4: 0.12 | R4: 0.1191658391
A5: d3, длина по низу, м | B5: 1.007 | P5: 1.921737144 | Q5: 0.2 | R5: 0.1986097319
A6: d2, длина карниза, м | B6: =SQRT(B4^2+B8^2) -> 1.007 | D6: Количество ламелей, шт | E6: =CEILING(12.5*B6,1) -> 13 | P6: 1.912320781 | Q6: 0.28 | R6: 0.2780536246
A7: h12, м | B7: =SQRT(B5^2-B4^2) -> 0.1185284776 | P7: 1.902904417 | Q7: 0.36 | R7: 0.3574975174
A8: h11, м | B8: =B2-B3+B7 -> 0.1185284776 | P8: 1.893488053 | Q8: 0.44 | R8: 0.4369414101
A9: Угол g, рад | B9: =ASIN(B4/B5) -> 1.452818286 | J9: d1 | P9: 1.88407169 | Q9: 0.52 | R9: 0.5163853029
A10: b крепеж жесткий, м | B10: 0.04 | P10: 1.874655326 | Q10: 0.6 | R10: 0.5958291956
A11: c, крепеж подвижный, м | B11: 0.015 | P11: 1.865238963 | Q11: 0.68 | R11: 0.6752730884
A12: угол β, рад, наклон карниза | B12: =ATAN((B8)/B4) -> 0.1179780412 | M12: h1 | P12: 1.855822599 | Q12: 0.76 | R12: 0.7547169811
A13: угол β, град, наклон карниза | B13: =DEGREES(B12) -> 6.759643835 | D13: Проверка угла β | E13: =IF(B13<=55,"Нормально","Недопустимо") -> Нормально | P13: 1.846406235 | Q13: 0.84 | R13: 0.8341608739
A14: угол α, град (зависит от β) | B14: =90-B13 -> 83.24035617 | P14: 1.836989872 | Q14: 0.92 | R14: 0.9136047666
A15: угол α, рад | B15: =RADIANS(B14) -> 1.452818286 | P15: 1.827573508 | Q15: 1 | R15: 0.9930486594
A16: a, высота, м (зависит от α) | B16: =B10*SIN(B15) -> 0.03972194638 | G16: h2 | P16: 1.818157144 | Q16: 1.08 | R16: 1.072492552
P17: 1.808740781 | Q17: 1.16 | R17: 1.151936445
A18: № ламели | B18: Длина ламели, м | P18: 1.799324417 | Q18: 1.24 | R18: 1.231380338
A19: 1 | B19: =P3+((R3)/TAN($B$9)) -> 1.945278054 | P19: 1.789908053 | Q19: 1.32 | R19: 1.31082423
A20: 2 | B20: 1.945278054 | P20: 1.78049169 | Q20: 1.4 | R20: 1.390268123
A21: 3 | B21: 1.945278054 | P21: 1.771075326 | Q21: 1.48 | R21: 1.469712016
A22: 4 | B22: 1.945278054 | P22: 1.761658962 | Q22: 1.56 | R22: 1.549155909
A23: 5 | B23: 1.945278054 | P23: 1.752242599 | Q23: 1.64 | R23: 1.628599801
A24: 6 | B24: 1.945278054 | G24: h12 | L24: 1 ламель | P24: 1.742826235 | Q24: 1.72 | R24: 1.708043694
A25: 7 | B25: 1.945278054 | J25: d3 | P25: 1.733409871 | Q25: 1.8 | R25: 1.787487587
A26: 8 | B26: 1.945278054 | P26: 1.723993508 | Q26: 1.88 | R26: 1.86693148
A27: 9 | B27: 1.945278054 | P27: 1.714577144 | Q27: 1.96 | R27: 1.946375372
A28: 10 | B28: 1.945278054 | G28: Мотор или механизм управления расположен | P28: 1.70516078 | Q28: 2.04 | R28: 2.025819265
A29: 11 | B29: 1.945278054 | G29: всегда в нижней части карниза | P29: 1.695744417 | Q29: 2.12 | R29: 2.105263158
A30: 12 | B30: 1.945278054 | P30: 1.686328053 | Q30: 2.2 | R30: 2.184707051
A31: 13 | B31: 1.945278054 | G31: Угол β: | H31: 55 гр. max | P31: 1.676911689 | Q31: 2.28 | R31: 2.264150943
A32: 14 | B32: 1.945278054 | P32: 1.667495326 | Q32: 2.36 | R32: 2.343594836
A33: 15 | B33: 1.945278054 | G33: Держатели ламелей всегда двусоставные | P33: 1.658078962 | Q33: 2.44 | R33: 2.423038729
A34: 16 | B34: 1.945278054 | P34: 1.648662598 | Q34: 2.52 | R34: 2.502482622
A35: 17 | B35: 1.945278054 | G35: Рассчитанные высоты ламелей являются актуальными | P35: =$B$2-Q35*SIN($B$12)-$B$16-$B$11 -> 1.639246235 | Q35: 2.6 | R35: =Q35*COS($B$12) -> 2.581926514
A36: 18 | B36: 1.945278054 | G36: только для производства AMIGO GROUP | P36: 1.629829871 | Q36: 2.68 | R36: 2.661370407
A37: 19 | B37: 1.945278054 | G37: Высота ламели реальная с держателем = Длина расч. - 2,5 см | P37: 1.620413507 | Q37: 2.76 | R37: 2.7408143
A38: 20 | B38: 1.945278054 | G38: Высота ткани (как с обычным держателем) = Длина расч. - 4 см | P38: 1.610997144 | Q38: 2.84 | R38: 2.820258193
A39: 21 | B39: 1.945278054 | P39: 1.60158078 | Q39: 2.92 | R39: 2.899702085
A40: 22 | B40: 1.945278054 | P40: 1.592164416 | Q40: 3 | R40: 2.979145978
A41: 23 | B41: 1.945278054 | P41: 1.582748053 | Q41: 3.08 | R41: 3.058589871
A42: 24 | B42: 1.945278054 | P42: 1.573331689 | Q42: 3.16 | R42: 3.138033764
A43: 25 | B43: 1.945278054 | P43: 1.563915325 | Q43: 3.24 | R43: 3.217477656
A44: 26 | B44: 1.945278054 | P44: 1.554498962 | Q44: 3.32 | R44: 3.296921549
A45: 27 | B45: 1.945278054 | P45: 1.545082598 | Q45: 3.4 | R45: 3.376365442
A46: 28 | B46: 1.945278054 | P46: 1.535666234 | Q46: 3.48 | R46: 3.455809335
A47: 29 | B47: 1.945278054 | P47: 1.526249871 | Q47: 3.56 | R47: 3.535253227
A48: 30 | B48: 1.945278054 | P48: 1.516833507 | Q48: 3.64 | R48: 3.61469712
A49: 31 | B49: 1.945278054 | P49: 1.507417143 | Q49: 3.72 | R49: 3.694141013
A50: 32 | B50: 1.945278054 | P50: 1.49800078 | Q50: 3.8 | R50: 3.773584906
A51: 33 | B51: =P35+((R35)/TAN($B$9)) -> 1.945278054 | P51: 1.488584416 | Q51: 3.88 | R51: 3.853028798
A52: 34 | B52: 1.945278054 | P52: 1.479168052 | Q52: 3.96 | R52: 3.932472691
A53: 35 | B53: 1.945278054 | P53: 1.469751689 | Q53: 4.04 | R53: 4.011916584
A54: 36 | B54: 1.945278054 | P54: 1.460335325 | Q54: 4.12 | R54: 4.091360477
A55: 37 | B55: 1.945278054 | P55: 1.450918961 | Q55: 4.2 | R55: 4.170804369
A56: 38 | B56: 1.945278054 | P56: 1.441502598 | Q56: 4.28 | R56: 4.250248262
A57: 39 | B57: 1.945278054 | P57: 1.432086234 | Q57: 4.36 | R57: 4.329692155
A58: 40 | B58: 1.945278054 | P58: 1.42266987 | Q58: 4.44 | R58: 4.409136048
A59: 41 | B59: 1.945278054 | P59: 1.413253507 | Q59: 4.52 | R59: 4.48857994
A60: 42 | B60: 1.945278054 | P60: 1.403837143 | Q60: 4.6 | R60: 4.568023833
A61: 43 | B61: 1.945278054 | P61: 1.394420779 | Q61: 4.68 | R61: 4.647467726
A62: 44 | B62: 1.945278054 | P62: 1.385004416 | Q62: 4.76 | R62: 4.726911619
A63: 45 | B63: 1.945278054 | P63: 1.375588052 | Q63: 4.84 | R63: 4.806355511
A64: 46 | B64: 1.945278054 | P64: 1.366171688 | Q64: 4.92 | R64: 4.885799404
A65: 47 | B65: 1.945278054 | P65: 1.356755325 | Q65: 5 | R65: 4.965243297
A66: 48 | B66: 1.945278054 | P66: 1.347338961 | Q66: 5.08 | R66: 5.04468719
A67: 49 | B67: 1.945278054 | P67: =$B$2-Q67*SIN($B$12)-$B$16-$B$11 -> 1.337922597 | Q67: 5.16 | R67: =Q67*COS($B$12) -> 5.124131082
A68: 50 | B68: 1.945278054 | P68: 1.328506234 | Q68: 5.24 | R68: 5.203574975
A69: 51 | B69: 1.945278054 | P69: 1.31908987 | Q69: 5.32 | R69: 5.283018868
A70: 52 | B70: 1.945278054 | P70: 1.309673506 | Q70: 5.4 | R70: 5.362462761
A71: 53 | B71: 1.945278054 | P71: 1.300257143 | Q71: 5.48 | R71: 5.441906653
A72: 54 | B72: 1.945278054 | P72: 1.290840779 | Q72: 5.56 | R72: 5.521350546
A73: 55 | B73: 1.945278054 | P73: 1.281424415 | Q73: 5.64 | R73: 5.600794439
A74: 56 | B74: 1.945278054 | P74: 1.272008052 | Q74: 5.72 | R74: 5.680238332
A75: 57 | B75: 1.945278054 | P75: 1.262591688 | Q75: 5.8 | R75: 5.759682224
A76: 58 | B76: 1.945278054 | P76: 1.253175324 | Q76: 5.88 | R76: 5.839126117
A77: 59 | B77: 1.945278054 | P77: 1.243758961 | Q77: 5.96 | R77: 5.91857001
A78: 60 | B78: 1.945278054 | P78: 1.234342597 | Q78: 6.04 | R78: 5.998013903
A79: 61 | B79: 1.945278054 | P79: 1.224926234 | Q79: 6.12 | R79: 6.077457795
A80: 62 | B80: 1.945278054 | P80: 1.21550987 | Q80: 6.2 | R80: 6.156901688
A81: 63 | B81: 1.945278054 | P81: 1.206093506 | Q81: 6.28 | R81: 6.236345581
A82: 64 | B82: 1.945278054 | P82: 1.196677143 | Q82: 6.36 | R82: 6.315789474
A83: 65 | B83: =P67+((R67)/TAN($B$9)) -> 1.945278054
A84: 66 | B84: 1.945278054
A85: 67 | B85: 1.945278054
A86: 68 | B86: 1.945278054
A87: 69 | B87: 1.945278054
A88: 70 | B88: 1.945278054
A89: 71 | B89: 1.945278054
A90: 72 | B90: 1.945278054
A91: 73 | B91: 1.945278054
A92: 74 | B92: 1.945278054
A93: 75 | B93: 1.945278054
A94: 76 | B94: 1.945278054
A95: 77 | B95: 1.945278054
A96: 78 | B96: 1.945278054
A97: 79 | B97: 1.945278054
A98: 80 | B98: 1.945278054

Sheet Наклонные мультифактуры
A1: Ввод начальных параметров | G1: Расчет нижней ширины | J1: Для этого расчета должны быть заданы высоты (слева)
A2: h1 высота большая, м | B2: 1.9 | G2: Длина карниза d2, м | I2: 2.268
A3: h2 высота меньшая,м | B3: 1.05 | G3: Ширина нижняя d1, м | I3: =SQRT(I2^2-(B2-B3)^2) -> 2.102694462
A4: d1 ширина нижняя, м | B4: 0.8
A5: d2, длина карниза, м | B5: =SQRT(((B2-B3)*(B2-B3)+B4*B4)) -> 1.167261753 | D5: Количество ламелей, шт | E5: =CEILING(12.5*B5,1) -> 15
A6: b крепеж жесткий, м | B6: 0.04
A7: c, крепеж подвижный, м | B7: 0.015
A8: угол β, рад, наклон карниза | B8: =ATAN((B2-B3)/B4) -> 0.8156919233 | H8: d2
A9: угол β, град, наклон карниза | B9: =DEGREES(B8) -> 46.73570459 | D9: Проверка угла β | E9: =IF(B9<=55,"Нормально","Недопустимо") -> Нормально
A10: угол α, град (зависит от β) | B10: =90-B9 -> 43.26429541
A11: угол α, рад | B11: =RADIANS(B10) -> 0.7551044035
A12: a, высота, м (зависит от α) | B12: =B6*SIN(B11) -> 0.02741458796
A13: № ламели | B13: Длина подложки, м | O13: Смещение по карнизу
A14: 1 | B14: =P14+0.015 -> 1.843457412 | D14: 1.828 | O14: 0.04 | P14: =B2-O14*SIN(B8)-B12-B7 -> 1.828457412
A15: 2 | B15: =P15+0.015 -> 1.785201413 | K15: h1 | O15: 0.12 | P15: =$B$2-O15*SIN($B$8)-$B$12-$B$7 -> 1.770201413
A16: 3 | B16: 1.726945414 | F16: h2 | O16: 0.2 | P16: 1.711945414
A17: 4 | B17: 1.668689414 | O17: 0.28 | P17: 1.653689414
A18: 5 | B18: 1.610433415 | O18: 0.36 | P18: 1.595433415
A19: 6 | B19: 1.552177415 | O19: 0.44 | P19: 1.537177415
A20: 7 | B20: 1.493921416 | O20: 0.52 | P20: 1.478921416
A21: 8 | B21: 1.435665416 | O21: 0.6 | P21: 1.420665416
A22: 9 | B22: 1.377409417 | K22: 1-я ламель | O22: 0.68 | P22: 1.362409417
A23: 10 | B23: 1.319153418 | H23: d1 | O23: 0.76 | P23: 1.304153418
A24: 11 | B24: 1.260897418 | O24: 0.84 | P24: 1.245897418
A25: 12 | B25: 1.202641419 | G25: Мотор или механизм управления расположен | O25: 0.92 | P25: 1.187641419
A26: 13 | B26: 1.144385419 | G26: всегда в нижней части карниза | O26: 1 | P26: 1.129385419
A27: 14 | B27: 1.08612942 | O27: 1.08 | P27: 1.07112942
A28: 15 | B28: 1.027873421 | D28: 1.013 | G28: Угол β: | H28: 55 гр. max | O28: 1.16 | P28: 1.012873421
A29: 16 | B29: 0.9696174211 | O29: 1.24 | P29: 0.9546174211
A30: 17 | B30: 0.9113614217 | G30: Держатели ламелей всегда двусоставные | O30: 1.32 | P30: 0.8963614217
A31: 18 | B31: 0.8531054223 | O31: 1.4 | P31: 0.8381054223
A32: 19 | B32: 0.7948494229 | G32: Рассчитанные высоты ламелей являются актуальными | O32: 1.48 | P32: 0.7798494229
A33: 20 | B33: 0.7365934234 | G33: только для производства AMIGO GROUP | O33: 1.56 | P33: 0.7215934234
A34: 21 | B34: 0.678337424 | O34: 1.64 | P34: 0.663337424
A35: 22 | B35: 0.6200814246 | G35: Высота ламели реальная с держателем = Длина расч. - 2,5 см | O35: 1.72 | P35: 0.6050814246
A36: 23 | B36: 0.5618254252 | G36: Высота ткани (как с обычным держателем) = Длина расч. - 4 см | O36: 1.8 | P36: 0.5468254252
A37: 24 | B37: 0.5035694258 | O37: 1.88 | P37: 0.4885694258
A38: 25 | B38: 0.4453134264 | O38: 1.96 | P38: 0.4303134264
A39: 26 | B39: 0.3870574269 | O39: 2.04 | P39: 0.3720574269
A40: 27 | B40: 0.3288014275 | O40: 2.12 | P40: 0.3138014275
A41: 28 | B41: 0.2705454281 | O41: 2.2 | P41: 0.2555454281
A42: 29 | B42: 0.2122894287 | O42: 2.28 | P42: 0.1972894287
A43: 30 | B43: 0.1540334293 | O43: 2.36 | P43: 0.1390334293
A44: 31 | B44: 0.09577742987 | O44: 2.44 | P44: 0.08077742987
A45: 32 | B45: 0.03752143045 | O45: 2.52 | P45: 0.02252143045
A46: 33 | B46: -0.02073456896 | O46: 2.6 | P46: -0.03573456896
A47: 34 | B47: -0.07899056838 | O47: 2.68 | P47: =$B$2-O47*SIN($B$8)-$B$12-$B$7 -> -0.09399056838
A48: 35 | B48: -0.1372465678 | O48: 2.76 | P48: -0.1522465678
A49: 36 | B49: -0.1955025672 | O49: 2.84 | P49: -0.2105025672
A50: 37 | B50: -0.2537585666 | O50: 2.92 | P50: -0.2687585666
A51: 38 | B51: -0.312014566 | O51: 3 | P51: -0.327014566
A52: 39 | B52: -0.3702705655 | O52: 3.08 | P52: -0.3852705655
A53: 40 | B53: -0.4285265649 | O53: 3.16 | P53: -0.4435265649
A54: 41 | B54: -0.4867825643 | O54: 3.24 | P54: -0.5017825643
A55: 42 | B55: -0.5450385637 | O55: 3.32 | P55: -0.5600385637
A56: 43 | B56: -0.6032945631 | O56: 3.4 | P56: -0.6182945631
A57: 44 | B57: -0.6615505625 | O57: 3.48 | P57: -0.6765505625
A58: 45 | B58: -0.7198065619 | O58: 3.56 | P58: -0.7348065619
A59: 46 | B59: -0.7780625614 | O59: 3.64 | P59: -0.7930625614
A60: 47 | B60: -0.8363185608 | O60: 3.72 | P60: -0.8513185608
A61: 48 | B61: -0.8945745602 | O61: 3.8 | P61: -0.9095745602
A62: 49 | B62: -0.9528305596 | O62: 3.88 | P62: -0.9678305596
A63: 50 | B63: -1.011086559 | O63: 3.96 | P63: -1.026086559
A64: 51 | B64: -1.069342558 | O64: 4.04 | P64: -1.084342558
A65: 52 | B65: -1.127598558 | O65: 4.12 | P65: -1.142598558
A66: 53 | B66: -1.185854557 | O66: 4.2 | P66: -1.200854557
A67: 54 | B67: -1.244110557 | O67: 4.28 | P67: -1.259110557
A68: 55 | B68: -1.302366556 | O68: 4.36 | P68: -1.317366556
A69: 56 | B69: -1.360622556 | O69: 4.44 | P69: -1.375622556
A70: 57 | B70: -1.418878555 | O70: 4.52 | P70: -1.433878555
A71: 58 | B71: -1.477134554 | O71: 4.6 | P71: -1.492134554
A72: 59 | B72: -1.535390554 | O72: 4.68 | P72: -1.550390554
A73: 60 | B73: -1.593646553 | O73: 4.76 | P73: -1.608646553
A74: 61 | B74: -1.651902553 | O74: 4.84 | P74: -1.666902553
A75: 62 | B75: -1.710158552 | O75: 4.92 | P75: -1.725158552
A76: 63 | B76: -1.768414551 | O76: 5 | P76: -1.783414551
A77: 64 | B77: -1.826670551 | O77: 5.08 | P77: -1.841670551
A78: 65 | B78: -1.88492655 | O78: 5.16 | P78: -1.89992655
A79: 66 | B79: =P79+0.015 -> -1.94318255 | O79: 5.24 | P79: =$B$2-O79*SIN($B$8)-$B$12-$B$7 -> -1.95818255
A80: 67 | B80: -2.001438549 | O80: 5.32 | P80: -2.016438549
A81: 68 | B81: -2.059694549 | O81: 5.4 | P81: -2.074694549
A82: 69 | B82: -2.117950548 | O82: 5.48 | P82: -2.132950548
A83: 70 | B83: -2.176206547 | O83: 5.56 | P83: -2.191206547
A84: 71 | B84: -2.234462547 | O84: 5.64 | P84: -2.249462547
A85: 72 | B85: -2.292718546 | O85: 5.72 | P85: -2.307718546
A86: 73 | B86: -2.350974546 | O86: 5.8 | P86: -2.365974546
A87: 74 | B87: -2.409230545 | O87: 5.88 | P87: -2.424230545
A88: 75 | B88: -2.467486544 | O88: 5.96 | P88: -2.482486544
A89: 76 | B89: -2.525742544 | O89: 6.04 | P89: -2.540742544
A90: 77 | B90: -2.583998543 | O90: 6.12 | P90: -2.598998543
A91: 78 | B91: -2.642254543 | O91: 6.2 | P91: -2.657254543
A92: 79 | B92: -2.700510542 | O92: 6.28 | P92: -2.715510542
A93: 80 | B93: -2.758766541 | O93: 6.36 | P93: -2.773766541
